Workbook

Sheet START HERE
A1: ="Lync Server Quality of Service (QoS) Calculator " & $A12 -> Lync Server Quality of Service (QoS) Calculator v1.0
A2: Use this calculator to define all Lync related QoS policies and settings. The output can be sent to the AD/GPO team and the Network team. You can use the info to configure Lync Server for optimal end user experience.
A4: By Pat Richard, Lync MVP (@PatRichard)
A6: Enter/update data in the green cells on the INPUT worksheet. QoS Group Policy Objects (GPOs) results are displayed on the POLICIES worksheet and the server side configuration is available on the POWERSHELL worksheet.
A8: For more information, or to submit feedback, please visit
A9: http://www.ehloworld.com/2821
A11: Version | B11: Date | C11: Changelog
A12: v1.0 | B12: 2014-11-03 | C12: Original version

Sheet Input
A1: Scenario | B1: Starting port | C1: Ending port | D1: Port count | E1: Range | F1: DSCP Value
A2: Server Audio | B2: 40803 | C2: =$B$2+($D$2-1) -> 49151 | D2: 8349 | E2: =Input!$B$2&":"&Input!$C$2 -> 40803:49151 | F2: 46 (EF)
A3: Server Video | B3: =B2+D2 -> 49152 | C3: =$B$3+($D$3-1) -> 57500 | D3: 8349 | E3: =Input!$B$3&":"&Input!$C$3 -> 49152:57500 | F3: 34 (AF41)
A4: Server Application Sharing | B4: =B3+D3 -> 57501 | C4: =B4+D4 -> 65534 | D4: 8033 | E4: =B4&":"&C4 -> 57501:65534 | F4: 26 (AF31)
A6: Client Audio | B6: =B2 -> 40803 | C6: =$B$6+($D$6-1) -> 40842 | D6: 40 | E6: =Input!$B$6&":"&Input!$C$6 -> 40803:40842 | F6: 46 (EF)
A7: Client Video | B7: =B3 -> 49152 | C7: =$B$7+($D$7-1) -> 49191 | D7: 40 | E7: =Input!$B$7&":"&Input!$C$7 -> 49152:49191 | F7: 34 (AF41)
A8: Client Application Sharing | B8: =B4 -> 57501 | C8: =$B$8+($D$8-1) -> 57540 | D8: 40 | E8: =Input!$B$8&":"&Input!$C$8 -> 57501:57540 | F8: 26 (AF31)
A9: Client File Transfer | B9: 20000 | C9: =$B$9+($D$9-1) -> 20039 | D9: 40 | E9: =Input!$B$9&":"&Input!$C$9 -> 20000:20039 | F9: 14 (AF13)
A10: Client Media (OCS clients) | B10: =B9+D9 -> 20040 | C10: =$B$10+($D$10-1) -> 20079 | D10: 40 | E10: =Input!$B$10&":"&Input!$C$10 -> 20040:20079 | F10: 46 (EF)
A11: Client SIP | B11: =B10+D10 -> 20080 | C11: =$B$11+($D$11-1) -> 20119 | D11: 40 | E11: =Input!$B$11&":"&Input!$C$11 -> 20080:20119 | F11: 24 (CS3)
A13: Lync Phone Edition | F13: 46 (EF)
A15: Pool Info
A16: Front End Pool FQDN | B16: frontendpool01.contoso.com
A17: Mediation Pool FQDN | B17: mediationpool01.contoso.com
A18: Edge Pool FQDN | B18: edgepool01.contoso.com
A20: Include these policies
A21: Exchange Unified Messaging (UM)
A22: UCMA applications
A23: Lync Phone Edition (LPE)
A24: Lync 2010 Attendant Console
A25: Lync 2010 client
A26: Lync 2013 client
A27: OCS client
A28: VDI
A29: Edge servers
A30: Windows Store App
A31: Mac client
A32: Client SIP
A34: Options
A35: Collocated Front End/Mediation

Sheet Policies
A1: Policy Name | B1: Component | C1: Communication type | D1: Executable name | E1: DSCP value | F1: TCP/UDP | G1: Source IP | H1: Destination IP | I1: Source Ports
A2: Client polices
A3: OCS 2007 R2 Media - communicator.exe | B3: OCS 2007 R2 | C3: Media | D3: communicator.exe | E3: =Input!F10 -> 46 (EF) | F3: Both | G3: Any | H3: Any | I3: =Input!E10 -> 20040:20079
A4: Lync 2010 Audio QoS - communicator.exe | B4: Lync 2010 client | C4: Audio | D4: communicator.exe | E4: =Input!$F$6 -> 46 (EF) | F4: Both | G4: Any | H4: Any | I4: =Input!$E$6 -> 40803:40842
A5: Lync 2010 Video QoS - communicator.exe | B5: Lync 2010 client | C5: Video | D5: communicator.exe | E5: =Input!$F$7 -> 34 (AF41) | F5: Both | G5: Any | H5: Any | I5: =Input!$E$7 -> 49152:49191
A6: Lync 2010 Application Sharing QoS - communicator.exe | B6: Lync 2010 client | C6: Application Sharing | D6: communicator.exe | E6: =Input!$F$8 -> 26 (AF31) | F6: TCP | G6: Any | H6: Any | I6: =Input!$E$8 -> 57501:57540
A7: Lync 2010 File Transfer QoS - communicator.exe | B7: Lync 2010 client | C7: File Transfer | D7: communicator.exe | E7: =Input!$F$9 -> 14 (AF13) | F7: TCP | G7: Any | H7: Any | I7: =Input!$E$9 -> 20000:20039
A8: Lync 2013 Audio QoS - lync.exe | B8: Lync 2013 client | C8: Audio | D8: lync.exe | E8: =Input!$F$6 -> 46 (EF) | F8: Both | G8: Any | H8: Any | I8: =Input!$E$6 -> 40803:40842
A9: Lync 2013 Video QoS - lync.exe | B9: Lync 2013 client | C9: Video | D9: lync.exe | E9: =Input!$F$7 -> 34 (AF41) | F9: Both | G9: Any | H9: Any | I9: =Input!$E$7 -> 49152:49191
A10: Lync 2013 Application Sharing QoS - lync.exe | B10: Lync 2013 client | C10: Application Sharing | D10: lync.exe | E10: =Input!$F$8 -> 26 (AF31) | F10: TCP | G10: Any | H10: Any | I10: =Input!$E$8 -> 57501:57540
A11: Lync 2013 File Transfer QoS - lync.exe | B11: Lync 2013 client | C11: File Transfer | D11: lync.exe | E11: =Input!$F$9 -> 14 (AF13) | F11: TCP | G11: Any | H11: Any | I11: =Input!$E$9 -> 20000:20039
A12: Lync 2013 SIP - lync.exe | B12: Signaling | C12: Signaling | D12: lync.exe | E12: =Input!$F$11 -> 24 (CS3) | F12: TCP | G12: Any | H12: Any | I12: =Input!$E$11 -> 20080:20119
A13: Lync 2010 Attendant Audio QoS - attendantconsole.exe | B13: Lync 2010 Attendant | C13: Audio | D13: AttendantConsole.exe | E13: =Input!$F$6 -> 46 (EF) | F13: Both | G13: Any | H13: Any | I13: =Input!$E$6 -> 40803:40842
A14: Lync Phone Edition QoS | B14: Lync Phone Edition | C14: Audio | D14: N/A | E14: =Input!$F$6 -> 46 (EF) | F14: Both | G14: Any | H14: Any | I14: =Input!$E$6 -> 40803:40842
A15: Lync Windows Store App Audio QoS - lyncmx.exe | B15: Lync Windows Store App | C15: Audio | D15: lyncmx.exe | E15: =Input!$F$6 -> 46 (EF) | F15: Both | G15: Any | H15: Any | I15: =Input!$E$6 -> 40803:40842
A16: Lync Windows Store App Video QoS - lyncmx.exe | B16: Lync Windows Store App | C16: Video | D16: lyncmx.exe | E16: =Input!$F$7 -> 34 (AF41) | F16: Both | G16: Any | H16: Any | I16: =Input!$E$7 -> 49152:49191
A17: Mac client QoS | B17: Mac client | C17: Audio | D17: GPO based QoS for the Mac client is not available.
A18: Mac client QoS | B18: Mac client | C18: Video | D18: GPO based QoS for the Mac client is not available.
A20: Front End Server policies
A21: Lync 2010/2013 Conferencing Audio QoS | B21: A/V Conferencing service | C21: Audio | D21: avmcusvc.exe | E21: =Input!$F$2 -> 46 (EF) | F21: Both | G21: Any | H21: Any | I21: =Input!$E$2 -> 40803:49151
A22: Lync 2010/2013 Conferencing Video QoS | B22: A/V Conferencing service | C22: Video | D22: avmcusvc.exe | E22: =Input!$F$3 -> 34 (AF41) | F22: Both | G22: Any | H22: Any | I22: =Input!$E$3 -> 49152:57500
A23: Lync 2010/2013 Application Sharing QoS | B23: Application Sharing | C23: Application Sharing | D23: asmcusvc.exe | E23: =Input!F4 -> 26 (AF31) | F23: TCP | G23: Any | H23: Any | I23: =Input!E4 -> 57501:65534
A24: Lync 2010/2013 Response Group QoS | B24: Response Group application | C24: Audio | D24: OcsAppServerHost.exe | E24: =Input!$F$6 -> 46 (EF) | F24: Both | G24: Any | H24: Any | I24: =Input!$E$2 -> 40803:49151
A25: Lync 2010/2013 Conference Announcement Service QoS | B25: Conference Announcement service | C25: Audio | D25: OcsAppServerHost.exe | E25: =Input!$F$6 -> 46 (EF) | F25: Both | G25: Any | H25: Any | I25: =Input!$E$2 -> 40803:49151
A26: Lync 2010/2013 Call Park QoS | B26: Call Park | C26: Audio | D26: OcsAppServerHost.exe | E26: =Input!$F$6 -> 46 (EF) | F26: Both | G26: Any | H26: Any | I26: =Input!$E$2 -> 40803:49151
A27: Lync 2013 UCMA Applications Audio QoS | B27: UCMA applications | C27: Audio | D27: OcsAppServerHost.exe | E27: =Input!$F$6 -> 46 (EF) | F27: Both | G27: Any | H27: Any | I27: =Input!$E$2 -> 40803:49151
A28: Lync 2013 UCMA Applications Video QoS | B28: UCMA applications | C28: Video | D28: OcsAppServerHost.exe | E28: =Input!$F$7 -> 34 (AF41) | F28: Both | G28: Any | H28: Any | I28: =Input!$E$3 -> 49152:57500
A30: Mediation Server policies
A31: Lync 2010/2013 Mediation Audio QoS | B31: PSTN audio | C31: Audio | D31: MediationServerSvc.exe | E31: =Input!$F$2 -> 46 (EF) | F31: Both | G31: Any | H31: Any | I31: =Input!$E$2 -> 40803:49151
A33: Edge Server policies
A34: Lync 2010/2013 Client Audio QoS | B34: A/V Edge service | C34: Audio | D34: All applications (MediaRelaySvc.exe) | E34: =Input!$F$6 -> 46 (EF) | F34: Both | G34: edge server INTERNAL (ie 10.10.10.20/32) | H34: any | I34: =Input!$E$6 -> 40803:40842
A35: Lync 2010/2013 Client Video QoS | B35: A/V Edge service | C35: Video | D35: All applications (MediaRelaySvc.exe) | E35: =Input!$F$7 -> 34 (AF41) | F35: Both | G35: edge server INTERNAL (ie 10.10.10.20/32) | H35: any | I35: =Input!$E$7 -> 49152:49191
A36: Lync 2010/2013 Conferencing Audio QoS | B36: A/V Edge service | C36: Audio | D36: All applications (MediaRelaySvc.exe) | E36: =Input!$F$6 -> 46 (EF) | F36: Both | G36: edge server INTERNAL (ie 10.10.10.20/32) | H36: any | I36: =Input!$E$2 -> 40803:49151
A37: Lync 2010/2013 Conferencing Video QoS | B37: A/V Edge service | C37: Video | D37: All applications (MediaRelaySvc.exe) | E37: =Input!$F$7 -> 34 (AF41) | F37: Both | G37: edge server INTERNAL (ie 10.10.10.20/32) | H37: any | I37: =Input!$E$3 -> 49152:57500
A39: Exchange UM Policies
A40: Lync Edge to Exchange UM Audio QoS | B40: Unified Messaging | C40: Audio | D40: All applications (MediaRelaySvc.exe) | E40: =Input!$F$7 -> 34 (AF41) | F40: UDP | G40: edge server INTERNAL (ie 10.10.10.20/32) | H40: Exchange UM IP | I40: 1024:65535
A41: Exchange UM Audio to Lync Edge QoS | B41: Unified Messaging | C41: Audio | D41: umservices.exe Microsoft.Exchange.UM.CallRouter.exe umworkerprocess.exe | E41: =Input!$F$2 -> 46 (EF) | F41: UDP | G41: Exchange UM IP | H41: edge server INTERNAL (ie 10.10.10.20/32)
A43: VDI policies
A44: Lync VDI Audio QoS | B44: Audio | C44: Audio | D44: mstsc.exe | E44: =Input!$F$6 -> 46 (EF) | F44: Both | G44: Any | H44: Any | I44: =Input!$E$2 -> 40803:49151
A45: Lync VDI Video QoS | B45: Video | C45: Video | D45: mstsc.exe | E45: =Input!$F$7 -> 34 (AF41) | F45: Both | G45: Any | H45: Any | I45: =Input!$E$3 -> 49152:57500
A46: Lync VDI Application Sharing QoS | B46: Application Sharing | C46: Application Sharing | D46: mstsc.exe | E46: =Input!$F$8 -> 26 (AF31) | F46: Both | G46: Any | H46: Any | I46: =Input!#REF! -> 

Sheet PowerShell
A1: Application | B1: Command
A2: Client | B2: ="Set-CsConferencingConfiguration -Identity global -ClientAudioPort "& Input!$B$6 &" -ClientAudioPortRange "& Input!$D$6 &" -ClientVideoPort "& Input!$B$7 &" -ClientVideoPortRange "& Input!$D$7 &" -ClientAppSharingPort "& Input!$B$8 & " -ClientAppSharingPortRange "& Input!$D$8 & " -ClientFileTransferPort "& Input!$B$9 & " -ClientFileTransferPortRange "& Input!$D$9 & Formulas!$C$21 -> Set-CsConferencingConfiguration -Identity global -ClientAudioPort 40803 -ClientAudioPortRange 40 -ClientVideoPort 49152 -ClientVideoPortRange 40 -ClientAppSharingPort 57501 -ClientAppSharingPortRange 40 -ClientFileTransferPort 20000 -ClientFileTransferPortRange 40 -ClientMediaPortRangeEnabled $true -ClientMediaPort 20040 -ClientMediaPortRange 40
A3: LPE | B3: ="Set-CsUCPhoneConfiguration -Identity global -VoiceDiffServTag " & LEFT(Input!$F$13, 2) -> Set-CsUCPhoneConfiguration -Identity global -VoiceDiffServTag 46
A4: Conferencing server | B4: ="Set-CsConferenceServer -Identity " & Input!$B$16 & " -AppSharingPortStart " & Input!$B$4 & " -AppSharingPortCount " & Input!$D$4 & " -AudioPortStart " & Input!$B$2 & " -AudioPortCount " & Input!$D$2 & " -VideoPortStart " & Input!$B$3 & " -VideoPortCount " & Input!$D$3 -> Set-CsConferenceServer -Identity frontendpool01.contoso.com -AppSharingPortStart 57501 -AppSharingPortCount 8033 -AudioPortStart 40803 -AudioPortCount 8349 -VideoPortStart 49152 -VideoPortCount 8349
A5: Applications server | B5: ="Set-CsApplicationServer -Identity " & Input!$B$16 & " -AppSharingPortStart " & Input!$B$4 & " -AppSharingPortCount " & Input!$D$4 & " -AudioPortStart " & Input!$B$2 & " -AudioPortCount " & Input!$D$2 & " -VideoPortStart " & Input!$B$3 & " -VideoPortCount " & Input!$D$3 -> Set-CsApplicationServer -Identity frontendpool01.contoso.com -AppSharingPortStart 57501 -AppSharingPortCount 8033 -AudioPortStart 40803 -AudioPortCount 8349 -VideoPortStart 49152 -VideoPortCount 8349
A6: Mediation Server | B6: ="Set-CsMediationServer -Identity " & IF(Formulas!$B$24,Input!$B$16,Input!$B$17) & " –AudioPortStart " & Input!$B$2 & " -AudioPortCount B5" & Input!$D$2 -> Set-CsMediationServer -Identity mediationpool01.contoso.com –AudioPortStart 40803 -AudioPortCount B58349
A7: Mediation Server | B7: Set-CsMediaConfiguration -Identity global -EnableQoS $true
A8: Edge Server | B8: ="Set-CsEdgeServer -Identity " & Input!B18 & " -MediaCommunicationPortStart 50000 -MediaCommunicationPortCount 10000" -> Set-CsEdgeServer -Identity edgepool01.contoso.com -MediaCommunicationPortStart 50000 -MediaCommunicationPortCount 10000
A9: Web Server | B9: ="Set-CsWebServer -Identity " & Input!$B$16 & " -AppSharingPortStart "& Input!$B$4 & " -AppSharingPortCount "& Input!$D$4 -> Set-CsWebServer -Identity frontendpool01.contoso.com -AppSharingPortStart 57501 -AppSharingPortCount 8033
A11: To apply these settings to additional pools, change the value of -Identity to match the target pool/configuration
A14: Note: PowerShell code to create and configure the Group Policy Objects is planned for a future version.

Sheet More info (hidden)
A1: DO NOT CHANGE ANYTHING ON THIS PAGE. IN THE PUBLIC VERSION, THIS TAB WILL BE HIDDEN
B3: Managing Quality of Service (QoS) in Lync Server 2013 | C3: http://technet.microsoft.com/en-us/library/gg405409.aspx
B4: Enabling QoS for Lync Server 2013 and Various Clients – Part 1 | C4: http://www.shudnow.net/2013/02/16/enabling-qos-for-lync-server-2013-and-various-clients-part-1/
B5: Enabling QoS for Lync Server 2013 and Various Clients – Part 2 | C5: http://www.shudnow.net/2013/03/03/enabling-qos-for-lync-server-2013-and-various-clients-part/
B6: Lync 2013 – Adding QOS to Lync Servers, Lync Clients and Lync Phone Editions | C6: http://northernlync.wordpress.com/2013/08/22/lync-2013-adding-qos-to-lync-servers-lync-clients-and-lync-phone-editions/
B7: Configuring Lync 2013 VDI Plug-in support for QoS | C7: http://blogs.technet.com/b/nexthop/archive/2013/10/24/configuring-lync-2013-vdi-plug-in-support-for-qos.aspx
B8: Lync 2013 QoS Configuration Step by Step | C8: http://www.xlync.com/home/Article/9/Lync-2013-QoS-Configuration-Step-by-Step
B9: Configure Quality of Service (QoS) for Unified Messaging | C9: http://technet.microsoft.com/en-us/library/ee633464.aspx
B10: Some notes on Lync and Exchange UM QoS | C10: http://www.confusedamused.com/notebook/some-notes-on-lync-and-exchange-um-qos/
B11: Configure Quality of Service (QoS) for Unified Messaging | C11: http://technet.microsoft.com/en-us/library/ee633464.aspx
B12: Lync Quality of Service Behavior | C12: http://blog.schertz.name/2011/08/lync-qos-behavior/
B14: Enabling DSCP Marking (OCS 2007 R2) | C14: http://technet.microsoft.com/en-us/library/dd441192(v=office.13).aspx
B16: Issue with Edge servers and .exe names
B19: VBA macros and protected worksheets | C19: http://www.ozgrid.com/VBA/excel-macro-protected-sheet.htm
B23: Lync 2013 QoS Settings Report | C23: http://gallery.technet.microsoft.com/office/Lync-2013-QoS-Settings-03917cf5

Sheet Formulas (hidden)
A1: DO NOT CHANGE ANYTHING ON THIS PAGE. IN THE PUBLIC VERSION, THIS TAB WILL BE HIDDEN
A10: Policy type | B10: Visible | F10: DSCP Class | G10: DSCP (dec) | H10: DSCP & Class
A11: Exchange UM | B11: TRUE
A12: UCMA applications | B12: TRUE | F12: none | G12: 0 | H12: 0
A13: Lync Phone Edition | B13: TRUE | F13: cs1 | G13: 8 | H13: 8 (CS1)
A14: Lync 2010 Attendant Console | B14: TRUE | F14: af11 | G14: 10 | H14: 10 (AF11)
F15: af12 | G15: 12 | H15: 12 (AF12)
A16: Lync 2010 client | B16: TRUE | F16: af13 | G16: 14 | H16: 14 (AF13)
A17: Lync 2013 client | B17: TRUE | F17: cs2 | G17: 16 | H17: 16 (CS2)
A18: VDI | B18: TRUE | F18: af21 | G18: 18 | H18: 18 (AF21)
A19: Edge servers | B19: TRUE | F19: af22 | G19: 20 | H19: 20 (AF22)
A20: Windows Store App | B20: TRUE | F20: af23 | G20: 22 | H20: 22 (AF23)
C21: =IF(Formulas!B25," -ClientMediaPortRangeEnabled $true -ClientMediaPort " & Input!B10 & " -ClientMediaPortRange " & Input!D10, "") -> -ClientMediaPortRangeEnabled $true -ClientMediaPort 20040 -ClientMediaPortRange 40 | F21: cs3 | G21: 24 | H21: 24 (CS3)
A22: Client SIP | B22: FALSE | C22: =IF(Formulas!B22," -ClientSipDynamicPortRange $true", "") ->  | F22: af31 | G22: 26 | H22: 26 (AF31)
A23: Mac client | B23: TRUE | F23: af32 | G23: 28 | H23: 28 (AF32)
A24: Colocated FE/Mediation | B24: FALSE | F24: af33 | G24: 30 | H24: 30 (AF33)
A25: OCS client | B25: TRUE | F25: cs4 | G25: 32 | H25: 32 (CS4)
F26: af41 | G26: 34 | H26: 34 (AF41)
F27: af42 | G27: 36 | H27: 36 (AF42)
F28: af43 | G28: 38 | H28: 38 (AF43)
F29: cs5 | G29: 40 | H29: 40 (CS5)
F30: ef | G30: 46 | H30: 46 (EF)
F31: cs6 | G31: 48 | H31: 48 (CS6)
F32: cs7 | G32: 56 | H32: 56 (CS7)

Sheet DSCP (hidden)
A1: Media Type | B1: Classification | C1: Queuing and Dropping | D1: Notes
A2: Audio | B2: EF (DSCP 46) | C2: Priority Queue | D2: Low loss, low latency, low jitter, assured bandwidth (BW)
A3: Video | B3: AF41 (DSCP 34) | C3: BW Queue + DSCP WRED | D3: Pair with WAN Bandwidth Policies on constrained links
A4: SIP Signalling | B4: CS3 (DSCP 24) | C4: BW Queue | D4: Class 4. Low drop priority
A7: Abbreviation | B7: Description | G7: Assured Forwarding (AF) Behavior Group
A8: ABR | B8: Available Bit Rate | G8: Column1 | H8: Class 1 (lowest) | I8: Class 2 | J8: Class 3 | K8: Class 4 (highest)
A9: AF | B9: Assured Forwarding | G9: Low Drop | H9: AF11 (DSCP 10) | I9: AF21 (DSCP 18) | J9: AF31 (DSCP 26) | K9: AF41 (DSCP 34)
A10: ATM | B10: Asynchronous Transfer Mode | G10: Med Drop | H10: AF12 (DSCP 12) | I10: AF22 (DSCP 20) | J10: AF32 (DSCP 28) | K10: AF42 (DSCP 36)
A11: BA | B11: Behavior Aggregate | G11: High Drop | H11: AF13 (DSCP 14) | I11: AF23 (DSCP 22) | J11: AF33 (DSCP 30) | K11: AF43 (DSCP 38)
A12: Bc | B12: committed Burst
A13: Be | B13: excess Burst
A14: BGP | B14: Border Gateway Protocol
A15: CAC | B15: Connection Admission Control
A16: CAR | B16: Committed Access Rate | G16: DSCP Class | H16: DSCP (bin) | I16: DSCP (hex) | J16: DSCP (dec) | K16: ToS (dec) | L16: ToS (hex) | M16: ToS (bin) | N16: ToS Prec. (bin) | O16: ToS Prec. (dec) | P16: ToS Delay Flag | Q16: ToS Throghput Flag | R16: ToS Reliability Flag | S16: TOS String Format | T16: Column1
A17: CBWFQ | B17: Class Based Weighted Fair Queuing
A18: CIR | B18: Committed Information Rate | G18: none | H18: 0 | I18: 0×00 | J18: 0 | K18: 0 | L18: 0×00 | M18: 0 | N18: 0 | O18: 0 | P18: 0 | Q18: 0 | R18: 0 | S18: Routine
A19: CoPS | B19: Common Open Policy Server | G19: cs1 | H19: 1000 | I19: 0×08 | J19: 8 | K19: 32 | L19: 0×20 | M19: 100000 | N19: 1 | O19: 1 | P19: 0 | Q19: 0 | R19: 0 | S19: Priority
A20: CoS | B20: Classification on Flows | G20: af11 | H20: 1010 | I20: 0×0A | J20: 10 | K20: 40 | L20: 0×28 | M20: 101000 | N20: 1 | O20: 1 | P20: 0 | Q20: 1 | R20: 0 | S20: Priority
A21: DiffServ | B21: Differentiated Services | G21: af12 | H21: 1100 | I21: 0×0C | J21: 12 | K21: 48 | L21: 0×30 | M21: 110000 | N21: 1 | O21: 1 | P21: 1 | Q21: 0 | R21: 0 | S21: Priority
A22: DS | B22: Differentiated Services | G22: af13 | H22: 1110 | I22: 0×0E | J22: 14 | K22: 56 | L22: 0×38 | M22: 111000 | N22: 1 | O22: 1 | P22: 1 | Q22: 1 | R22: 0 | S22: Priority
A23: DSCP | B23: Differentiated Services Code Point | G23: cs2 | H23: 10000 | I23: 0×10 | J23: 16 | K23: 64 | L23: 0×40 | M23: 1000000 | N23: 10 | O23: 2 | P23: 0 | Q23: 0 | R23: 0 | S23: Immediate
A24: DTR | B24: Data Terminal Ready | G24: af21 | H24: 10010 | I24: 0×12 | J24: 18 | K24: 72 | L24: 0×48 | M24: 1001000 | N24: 10 | O24: 2 | P24: 0 | Q24: 1 | R24: 0 | S24: Immediate
A25: EF | B25: Expedited Forwarding | G25: af22 | H25: 10100 | I25: 0×14 | J25: 20 | K25: 80 | L25: 0×50 | M25: 1010000 | N25: 10 | O25: 2 | P25: 1 | Q25: 0 | R25: 0 | S25: Immediate
A26: EGP | B26: Exterior Gateway Protocol | G26: af23 | H26: 10110 | I26: 0×16 | J26: 22 | K26: 88 | L26: 0×58 | M26: 1011000 | N26: 10 | O26: 2 | P26: 1 | Q26: 1 | R26: 0 | S26: Immediate
A27: EIGRP | B27: Interior Gateway Routing Protocol | G27: cs3 | H27: 11000 | I27: 0×18 | J27: 24 | K27: 96 | L27: 0×60 | M27: 1100000 | N27: 11 | O27: 3 | P27: 0 | Q27: 0 | R27: 0 | S27: Flash
A28: ERP | B28: Enterprise Resource Planning | G28: af31 | H28: 11010 | I28: 0×1A | J28: 26 | K28: 104 | L28: 0×68 | M28: 1101000 | N28: 11 | O28: 3 | P28: 0 | Q28: 1 | R28: 0 | S28: Flash
A29: FRF | B29: Frame-Relay Forum | G29: af32 | H29: 11100 | I29: 0×1C | J29: 28 | K29: 112 | L29: 0×70 | M29: 1110000 | N29: 11 | O29: 3 | P29: 1 | Q29: 0 | R29: 0 | S29: Flash
A30: FRTS | B30: Frame Relay Traffic Shaping | G30: af33 | H30: 11110 | I30: 0×1E | J30: 30 | K30: 120 | L30: 0×78 | M30: 1111000 | N30: 11 | O30: 3 | P30: 1 | Q30: 1 | R30: 0 | S30: Flash
A31: FRTS | B31: Frame-Relay Traffic Shaping | G31: cs4 | H31: 100000 | I31: 0×20 | J31: 32 | K31: 128 | L31: 0×80 | M31: 10000000 | N31: 100 | O31: 4 | P31: 0 | Q31: 0 | R31: 0 | S31: FlashOverride
A32: FTP | B32: File Transfer Protocol | G32: af41 | H32: 100010 | I32: 0×22 | J32: 34 | K32: 136 | L32: 0×88 | M32: 10001000 | N32: 100 | O32: 4 | P32: 0 | Q32: 1 | R32: 0 | S32: FlashOverride
A33: GTS | B33: Generic Traffic Shaping | G33: af42 | H33: 100100 | I33: 0×34 | J33: 36 | K33: 144 | L33: 0×90 | M33: 10010000 | N33: 100 | O33: 4 | P33: 1 | Q33: 0 | R33: 0 | S33: FlashOverride
A34: IEFT | B34: Internet Engineering Task Force | G34: af43 | H34: 100110 | I34: 0×26 | J34: 38 | K34: 152 | L34: 0×98 | M34: 10011000 | N34: 100 | O34: 4 | P34: 1 | Q34: 1 | R34: 0 | S34: FlashOverride
A35: IGP | B35: Interior Gateway Protocol | G35: cs5 | H35: 101000 | I35: 0×28 | J35: 40 | K35: 160 | L35: 0xA0 | M35: 10100000 | N35: 101 | O35: 5 | P35: 0 | Q35: 0 | R35: 0 | S35: Critical
A36: IntServ | B36: Integrated Services | G36: ef | H36: 101110 | I36: 0×2E | J36: 46 | K36: 184 | L36: 0xB8 | M36: 10111000 | N36: 101 | O36: 5 | P36: 1 | Q36: 1 | R36: 0 | S36: Critical
A37: IP | B37: Internet Protocol | G37: cs6 | H37: 110000 | I37: 0×30 | J37: 48 | K37: 192 | L37: 0xC0 | M37: 11000000 | N37: 110 | O37: 6 | P37: 0 | Q37: 0 | R37: 0 | S37: Internetworkcontrol
A38: IS-IS | B38: Intermediate System-to-Intermediate System | G38: cs7 | H38: 111000 | I38: 0×38 | J38: 56 | K38: 224 | L38: 0xE0 | M38: 11100000 | N38: 111 | O38: 7 | P38: 0 | Q38: 0 | R38: 0 | S38: Networkcontrol
A39: ITU-T | B39: International Union for Telecommunications, Telecommunications
A40: LAN | B40: Local Area Network
A41: LLQ | B41: Low Latency Queuing
A42: MCR | B42: Minimum Cell Rate
A43: MIB | B43: Management Information Base
A44: MPLS | B44: Multi Protocol Label Switching
A45: MQC | B45: Modular QoS CLI
A46: OSPF | B46: Open Shortest Path First
A47: PCR | B47: Peak Cell Rate
A48: PHB | B48: Per-Hop Behavior
A49: QoS | B49: Quality of Service
A50: RFCs | B50: Request for Comments
A51: RMON | B51: Remote Monitoring
A52: RSVP | B52: Resource Reservation Protocol
A53: SLA | B53: Service Level Agreement
A54: SVC | B54: Switched Virtual Circuit
A55: TCP | B55: Transfer Control Protocol
A56: ToS | B56: Type of Service
A57: UDP | B57: User Datagram Protocol
A58: VBR-rt | B58: Variable Bit Rate, Real-Time
A59: VoIP | B59: Voice over IP
A60: WRED | B60: Weighted Randomly Early Detected

Sheet Tasks (hidden)
A1: Task | B1: Priority | C1: Status
A2: Additional information about why ALL APPLICATIONS should be specified for edge servers
A3: Remove LPE info from POLICIES
A4: Fix RESET buttons to handle resetting DSCP cells
A5: Add PowerShell for GPOs
A6: Validate ExUM executable names
A7: policy names should dynamically change PowerShell, etc.
A8: Trusted app ports
A9: SDN API ports
